[Event "10th Sharjah Cup Women 2020"]
[Site "Sharjah"]
[Date "2020.01.06"]
[Round "3.23"]
[White "Al-Fayyadh, Zainab Asif Abdulah"]
[Black "Mission, Cheryll Rosales"]
[Result "1/2-1/2"]
[ECO "C02"]
[WhiteElo "1646"]
[BlackElo "1135"]
[Annotator "NA"]
[PlyCount "118"]
[EventDate "2020.01.04"]
[EventType "swiss"]
[EventCountry "UAE"]
[SourceTitle "playchess.com"]
[Source "ChessBase"]
[SourceQuality "1"]
[TimeControl "5400+30"]

1. e4 {[%emt 0:00:00]} e6 {[%emt 0:10:46]} 2. d4 {[%emt 0:00:00]} d5 {[%emt 0:00:08]} 3. e5 {[%emt 0:00:00]} c5 {[%emt 0:00:06]} 4. c3 {[%emt 0:00:00]} c4 {[%emt 0:01:35]} 5. Nf3 {[%emt 0:00:25]} a6 {[%emt 0:00:09]} 6. Be2 {[%emt 0:00:18]} b5 {[%emt 0:00:08]} 7. O-O {[%emt 0:00:12]} h6 {[%emt 0:00:04]} 8. b3 {[%emt 0:00:30]} Ne7 {[%emt 0:00:06]} 9. a4 {[%emt 0:00:21]} Bb7 {[%emt 0:00:11]} 10. Na3 {[%emt 0:00:42]} Nf5 {[%emt 0:00:23]} 11. axb5 {[%emt 0:02:11]} axb5 {[%emt 0:01:06]} 12. Bb2 {[%emt 0:01:27]} Bc6 {[%emt 0:00:11]} 13. h3 {[%emt 0:05:13]} Be7 {[%emt 0:00:17]} 14. Nh2 {[%emt 0:00:29]} O-O {[%emt 0:00:33]} 15. Bg4 {[%emt 0:00:28]} Nh4 {[%emt 0:00:53]} 16. b4 {[%emt 0:00:48]} Nd7 {[%emt 0:00:35]} 17. f4 {[%emt 0:00:59]} Nb6 {[%emt 0:02:19]} 18. Nf3 {[%emt 0:02:13]} Na4 {[%emt 0:00:39]} 19. Qc2 {[%emt 0:01:53]} Nf5 {[%emt 0:01:39]} 20. Bc1 {[%emt 0:00:54]} Ng3 {[%emt 0:00:15]} 21. Re1 {[%emt 0:02:48]} Ne4 {[%emt 0:00:14]} 22. Bb2 {[%emt 0:01:50]} Bh4 {[%emt 0:00:59]} 23. Rf1 {[%emt 0:02:44]} Bg3 {[%emt 0:00:54]} 24. Nd2 {[%emt 0:01:38]} f5 {[%emt 0:02:16]} 25. exf6 {[%emt 0:04:36]} Rxf6 {[%emt 0:00:17]} 26. Nxe4 {[%emt 0:01:21]} dxe4 {[%emt 0:00:14]} 27. Bc1 {[%emt 0:02:08]} Qb6 {[%emt 0:00:45]} 28. Be3 {[%emt 0:00:54]} Raf8 {[%emt 0:01:03]} 29. Qd2 {[%emt 0:00:38]} Bd5 {[%emt 0:00:15]} 30. Bd1 {[%emt 0:01:37]} Ra8 {[%emt 0:02:00]} 31. Bc2 {[%emt 0:04:57]} Qc6 {[%emt 0:01:25]} 32. Ra2 {[%emt 0:02:02]} Nb6 {[%emt 0:00:29]} 33. Qe2 {[%emt 0:06:12]} Rg6 {[%emt 0:02:23]} 34. Qh5 {[%emt 0:02:45]} Qe8 {[%emt 0:04:48]} 35. Kh1 {[%emt 0:03:21]} Na4 {[%emt 0:03:09]} 36. Nxb5 {[%emt 0:01:54]} Qxb5 {[%emt 0:01:39]} 37. Qxg6 {[%emt 0:00:28]} Nxc3 {[%emt 0:00:12]} 38. Rxa8+ {[%emt 0:01:18]} Bxa8 {[%emt 0:00:18]} 39. Qxg3 {[%emt 0:01:07]} Ne2 {[%emt 0:01:21]} 40. Qg4 {[%emt 0:01:04]} c3 {[%emt 0:00:32]} 41. Qxe6+ {[%emt 0:01:07]} Kh8 {[%emt 0:00:10]} 42. Qc8+ {[%emt 0:00:27]} Kh7 {[%emt 0:00:08]} 43. Qxa8 {[%emt 0:00:13]} Ng3+ {[%emt 0:00:18]} 44. Kg1 {[%emt 0:04:57]} Qxf1+ {[%emt 0:03:57]} 45. Kh2 {[%emt 0:00:29]} Qe1 {[%emt 0:00:40]} 46. Bxe4+ {[%emt 0:03:20]} Nxe4 {[%emt 0:00:15]} 47. Qxe4+ {[%emt 0:00:05]} Kg8 {[%emt 0:00:09]} 48. d5 {[%emt 0:02:19]} c2 {[%emt 0:00:15]} 49. Qe6+ {[%emt 0:00:32]} Kh7 {[%emt 0:00:30]} 50. Qf5+ {[%emt 0:01:16]} Kg8 {[%emt 0:00:10]} 51. Qc8+ {[%emt 0:00:16]} Kh7 {[%emt 0:00:06]} 52. Qxc2+ {[%emt 0:00:15]} Kg8 {[%emt 0:00:12]} 53. Bc5 {[%emt 0:00:49]} Qf1 {[%emt 0:00:22]} 54. Qf5 {[%emt 0:00:18]} Qc1 {[%emt 0:00:46]} 55. d6 {[%emt 0:00:27]} Qd2 {[%emt 0:00:33]} 56. d7 {[%emt 0:00:17]} Kh8 {[%emt 0:00:38]} 57. Be7 {[%emt 0:00:19]} g6 {[%emt 0:00:37]} 58. Qf8+ {[%emt 0:00:21]} Kh7 {[%emt 0:00:08]} 59. Qf7+ {[%emt 0:00:10]} Kh8 {[%emt 0:00:11]} 1/2-1/2

[Event "10th Sharjah Cup Women 2020"]
[Site "Sharjah"]
[Date "2020.01.07"]
[Round "4.1"]
[White "Bulmaga, Irina"]
[Black "Zimina, Olga"]
[Result "1-0"]
[ECO "B40"]
[WhiteElo "2446"]
[BlackElo "2367"]
[Annotator "RC"]
[PlyCount "71"]
[EventDate "2020.01.04"]
[EventType "swiss"]
[EventCountry "UAE"]
[SourceTitle "playchess.com"]
[Source "ChessBase"]
[SourceQuality "1"]
[TimeControl "5400+30"]

1. e4 {[%emt 0:00:00]} c5 {[%emt 0:00:00]} 2. Nf3 {[%emt 0:00:00]} e6 {[%emt 0:00:00]} 3. d4 {[%emt 0:00:12]} cxd4 {[%emt 0:00:00]} 4. Nxd4 {[%emt 0:00:05]} Nf6 {[%emt 0:00:00]} 5. Nc3 {[%emt 0:00:43]} Nc6 {[%emt 0:00:00]} 6. Ndb5 {[%emt 0:01:00]} Bb4 {[%emt 0:00:46]} 7. a3 {[%emt 0:00:08]} Bxc3+ {[%emt 0:00:06]} 8. Nxc3 {[%emt 0:00:05]} d5 {[%emt 0:00:05]} 9. Bd3 {[%emt 0:05:54]} dxe4 {[%emt 0:00:25]} 10. Nxe4 {[%emt 0:00:05]} Nxe4 {[%emt 0:00:04]} 11. Bxe4 {[%emt 0:00:05]} Qxd1+ {[%emt 0:00:04]} 12. Kxd1 {[%emt 0:00:05]} Bd7 {[%emt 0:00:04]} 13. Be3 {[%emt 0:01:24]} f5 {[%emt 0:04:09]} 14. Bd3 {[%emt 0:00:06]} e5 {[%emt 0:00:13]} 15. f3 {[%emt 0:00:16]} Kf7 {[%emt 0:00:42]} 16. b3 {[%emt 0:01:59]} h5 {[%emt 0:13:44]} 17. Kc1 {[%emt 0:11:15]} f4 {[%emt 0:11:02]} 18. Bf2 {[%emt 0:01:59]} Kf6 {[%emt 0:00:04]} 19. Rd1 {[%emt 0:07:19]} Rhd8 {[%emt 0:00:46]} 20. Kb2 {[%emt 0:04:47]} Bf5 {[%emt 0:03:10]} 21. Bxf5 {[%emt 0:01:09]} Kxf5 {[%emt 0:00:06]} 22. c4 {[%emt 0:00:11]} g5 {[%emt 0:02:04]} 23. Kc3 {[%emt 0:05:16]} g4 {[%emt 0:01:59]} 24. b4 {[%emt 0:03:44]} b6 {[%emt 0:06:50]} 25. a4 {[%emt 0:14:04]} g3 {[%emt 0:27:33]} 26. hxg3 {[%emt 0:01:18]} fxg3 {[%emt 0:00:02]} 27. Bxg3 {[%emt 0:10:49]} Rg8 {[%emt 0:01:48]} 28. Bh4 {[%emt 0:00:12]} a5 {[%emt 0:00:34]} 29. Rd6 {[%emt 0:07:56]} axb4+ {[%emt 0:00:21]} 30. Kd3 {[%emt 0:01:41]} e4+ {[%emt 0:02:13]} 31. Ke3 {[%emt 0:01:22]} exf3 {[%emt 0:00:30]} 32. Rf6+ {[%emt 0:00:14]} Ke5 {[%emt 0:00:29]} 33. gxf3 {[%emt 0:00:13]} Rg3 {[%emt 0:01:20]} 34. Rxc6 {[%emt 0:00:08]} Rh3 {[%emt 0:00:04]} 35. Rd1 {[%emt 0:01:12]} Ra5 {[%emt 0:00:31]} 36. Rg1 {[%emt 0:00:06] Kd5 Ke4+} 1-0

[Event "10th Sharjah Cup Women 2020"]
[Site "Sharjah"]
[Date "2020.01.07"]
[Round "4.2"]
[White "Dordzhieva, Dinara"]
[Black "Assaubayeva, Bibisara"]
[Result "1-0"]
[ECO "D11"]
[WhiteElo "2326"]
[BlackElo "2375"]
[Annotator "RC"]
[PlyCount "125"]
[EventDate "2020.01.04"]
[EventType "swiss"]
[EventCountry "UAE"]
[SourceTitle "playchess.com"]
[Source "ChessBase"]
[SourceQuality "1"]
[TimeControl "5400+30"]

1. d4 {[%emt 0:00:00]} d5 {[%emt 0:00:00]} 2. c4 {[%emt 0:00:00]} c6 {[%emt 0:00:00]} 3. Nf3 {[%emt 0:00:00]} Nf6 {[%emt 0:00:13]} 4. g3 {[%emt 0:00:00]} Bf5 {[%emt 0:02:13]} 5. Nc3 {[%emt 0:00:01]} dxc4 {[%emt 0:00:07]} 6. Ne5 {[%emt 0:03:40]} Be6 {[%emt 0:05:04]} 7. e4 {[%emt 0:12:25]} g6 {[%emt 0:09:04]} 8. a4 {[%emt 0:08:46]} Bg7 {[%emt 0:03:48]} 9. Nxc4 {[%emt 0:02:57]} O-O {[%emt 0:04:32]} 10. Ne3 {[%emt 0:02:10]} Qd7 {[%emt 0:04:40]} 11. e5 {[%emt 0:11:05]} Nd5 {[%emt 0:02:02]} 12. Bg2 {[%emt 0:06:20]} Nxe3 {[%emt 0:02:04]} 13. Bxe3 {[%emt 0:00:14]} a5 {[%emt 0:01:30]} 14. h4 {[%emt 0:04:38]} h5 {[%emt 0:04:15]} 15. f4 {[%emt 0:11:20]} Na6 {[%emt 0:02:25]} 16. d5 {[%emt 0:03:24]} cxd5 {[%emt 0:04:55]} 17. Nxd5 {[%emt 0:00:11]} Rad8 {[%emt 0:01:48]} 18. Nb6 {[%emt 0:01:52]} Qc7 {[%emt 0:00:15]} 19. Qc1 {[%emt 0:01:38]} Qb8 {[%emt 0:00:19]} 20. O-O {[%emt 0:01:31]} Nb4 {[%emt 0:03:30]} 21. Qc5 {[%emt 0:01:40]} Bf5 {[%emt 0:05:42]} 22. Rad1 {[%emt 0:05:33]} f6 {[%emt 0:05:30]} 23. exf6 {[%emt 0:11:09]} Bxf6 {[%emt 0:01:03]} 24. Qxa5 {[%emt 0:00:24]} Nc6 {[%emt 0:06:04]} 25. Qb5 {[%emt 0:00:55]} Kh7 {[%emt 0:04:53]} 26. Nd5 {[%emt 0:02:01]} Bg7 {[%emt 0:00:25]} 27. Bb6 {[%emt 0:00:40]} Rd7 {[%emt 0:00:23]} 28. Ne3 {[%emt 0:04:04]} Rxd1 {[%emt 0:07:34]} 29. Rxd1 {[%emt 0:00:07]} e5 {[%emt 0:00:51]} 30. Nxf5 {[%emt 0:00:47]} gxf5 {[%emt 0:00:11]} 31. Rd7 {[%emt 0:02:54]} exf4 {[%emt 0:00:59]} 32. Qe2 {[%emt 0:00:52]} Kg6 {[%emt 0:04:03]} 33. Bf3 {[%emt 0:00:28]} fxg3 {[%emt 0:01:06]} 34. Bxh5+ {[%emt 0:00:07]} Kh6 {[%emt 0:00:41]} 35. Bf7 {[%emt 0:01:11]} Rxf7 {[%emt 0:07:54]} 36. Rxf7 {[%emt 0:00:03]} Qe5 {[%emt 0:01:01]} 37. Qxe5 {[%emt 0:00:37]} Nxe5 {[%emt 0:00:02]} 38. Rxf5 {[%emt 0:01:10]} Nc4 {[%emt 0:00:05]} 39. a5 {[%emt 0:01:46]} Bxb2 {[%emt 0:00:22]} 40. Kg2 {[%emt 0:00:27]} Be5 {[%emt 0:01:52]} 41. Rf7 {[%emt 0:00:30]} Bc3 {[%emt 0:01:25]} 42. Rf5 {[%emt 0:00:38]} Be1 {[%emt 0:00:57]} 43. Rb5 {[%emt 0:00:37]} Kg6 {[%emt 0:01:21]} 44. Rc5 {[%emt 0:00:34]} Ne3+ {[%emt 0:01:02]} 45. Kf3 {[%emt 0:00:05]} Nf5 {[%emt 0:00:06]} 46. h5+ {[%emt 0:00:37]} Kf6 {[%emt 0:00:04]} 47. Bd8+ {[%emt 0:00:45]} Ke6 {[%emt 0:00:01]} 48. Rc1 {[%emt 0:00:30]} Bf2 {[%emt 0:00:52]} 49. Rb1 {[%emt 0:00:17]} Nd6 {[%emt 0:02:58]} 50. Bc7 {[%emt 0:00:34]} Nf5 {[%emt 0:00:18]} 51. Bd8 {[%emt 0:00:18]} Nd6 {[%emt 0:00:07]} 52. Bb6 {[%emt 0:00:35]} Nc4 {[%emt 0:00:17]} 53. Rb5 {[%emt 0:00:47]} Nxb6 {[%emt 0:01:14]} 54. axb6 {[%emt 0:00:33]} Kf7 {[%emt 0:00:10]} 55. Rg5 {[%emt 0:00:30]} Bxb6 {[%emt 0:00:17]} 56. h6 {[%emt 0:00:18]} Bd4 {[%emt 0:00:23]} 57. h7 {[%emt 0:00:12]} Ke6 {[%emt 0:00:12]} 58. Rg8 {[%emt 0:00:34]} b5 {[%emt 0:00:08]} 59. Re8+ {[%emt 0:00:22]} Kd7 {[%emt 0:00:17]} 60. h8=Q {[%emt 0:00:11]} Bxh8 {[%emt 0:00:05]} 61. Rxh8 {[%emt 0:00:02]} Kc6 {[%emt 0:00:18]} 62. Rh5 {[%emt 0:00:12]} Kb6 {[%emt 0:00:12]} 63. Kxg3 {[%emt 0:00:18]} 1-0

[Event "10th Sharjah Cup Women 2020"]
[Site "Sharjah"]
[Date "2020.01.07"]
[Round "4.5"]
[White "Kubicka, Anna"]
[Black "Socko, Monika"]
[Result "0-1"]
[ECO "C96"]
[WhiteElo "2258"]
[BlackElo "2413"]
[Annotator "RC"]
[PlyCount "98"]
[EventDate "2020.01.04"]
[EventType "swiss"]
[EventCountry "UAE"]
[SourceTitle "playchess.com"]
[Source "ChessBase"]
[SourceQuality "1"]
[TimeControl "5400+30"]

1. e4 {[%emt 0:00:00]} e5 {[%emt 0:00:00]} 2. Nf3 {[%emt 0:00:31]} Nc6 {[%emt 0:00:00]} 3. Bb5 {[%emt 0:00:22]} a6 {[%emt 0:00:00]} 4. Ba4 {[%emt 0:00:04]} Nf6 {[%emt 0:00:12]} 5. O-O {[%emt 0:00:06]} Be7 {[%emt 0:00:25]} 6. Re1 {[%emt 0:00:05]} b5 {[%emt 0:00:21]} 7. Bb3 {[%emt 0:00:04]} d6 {[%emt 0:00:36]} 8. c3 {[%emt 0:00:05]} O-O {[%emt 0:00:47]} 9. h3 {[%emt 0:00:05]} Na5 {[%emt 0:00:13]} 10. Bc2 {[%emt 0:00:05]} c5 {[%emt 0:00:28]} 11. d4 {[%emt 0:00:05]} Nd7 {[%emt 0:00:13]} 12. Nbd2 {[%emt 0:00:20]} exd4 {[%emt 0:00:53]} 13. cxd4 {[%emt 0:00:05]} Nc6 {[%emt 0:00:09]} 14. a4 {[%emt 0:01:06]} Bb7 {[%emt 0:04:34]} 15. d5 {[%emt 0:00:54]} Nce5 {[%emt 0:00:30]} 16. Nxe5 {[%emt 0:00:09]} Nxe5 {[%emt 0:00:07]} 17. f4 {[%emt 0:00:04]} Nd7 {[%emt 0:00:59]} 18. Nf3 {[%emt 0:00:11]} Re8 {[%emt 0:00:24]} 19. e5 {[%emt 0:07:35]} dxe5 {[%emt 0:00:04]} 20. fxe5 {[%emt 0:00:31]} c4 {[%emt 0:00:24]} 21. Bf4 {[%emt 0:24:30]} g6 {[%emt 0:20:43]} 22. Kh2 {[%emt 0:13:24]} Bf8 {[%emt 0:12:29]} 23. e6 {[%emt 0:33:59]} fxe6 {[%emt 0:01:30]} 24. Ng5 {[%emt 0:00:20]} Bxd5 {[%emt 0:08:09]} 25. axb5 {[%emt 0:00:16]} Bd6 {[%emt 0:12:53]} 26. Bxd6 {[%emt 0:09:28]} Qxg5 {[%emt 0:00:13]} 27. Be4 {[%emt 0:01:14]} axb5 {[%emt 0:13:15]} 28. Rxa8 {[%emt 0:01:23]} Rxa8 {[%emt 0:00:40]} 29. Bxd5 {[%emt 0:00:16]} Qxd5 {[%emt 0:03:53]} 30. Qxd5 {[%emt 0:00:05]} exd5 {[%emt 0:00:02]} 31. Re7 {[%emt 0:00:11]} Ra7 {[%emt 0:01:12]} 32. Bc5 {[%emt 0:00:41]} Rb7 {[%emt 0:01:05]} 33. Bd4 {[%emt 0:00:09]} b4 {[%emt 0:00:35]} 34. Rg7+ {[%emt 0:04:39]} Kf8 {[%emt 0:00:03]} 35. Rxh7 {[%emt 0:00:05]} c3 {[%emt 0:02:14]} 36. bxc3 {[%emt 0:00:03]} b3 {[%emt 0:00:06]} 37. c4 {[%emt 0:00:10]} dxc4 {[%emt 0:00:05]} 38. h4 {[%emt 0:01:41]} Ke8 {[%emt 0:00:52]} 39. Rh8+ {[%emt 0:00:06]} Nf8 {[%emt 0:01:52]} 40. Bb2 {[%emt 0:00:41]} Rb5 {[%emt 0:07:12]} 41. g4 {[%emt 0:02:24]} Kf7 {[%emt 0:03:47]} 42. h5 {[%emt 0:00:19]} gxh5 {[%emt 0:00:25]} 43. Rxh5 {[%emt 0:01:58]} Rxh5+ {[%emt 0:01:11]} 44. gxh5 {[%emt 0:00:02]} Ne6 {[%emt 0:00:20]} 45. Kg3 {[%emt 0:00:18]} Nc5 {[%emt 0:00:03]} 46. h6 {[%emt 0:01:01]} Kg6 {[%emt 0:00:11]} 47. Kf3 {[%emt 0:00:16]} Na4 {[%emt 0:00:39]} 48. Ba3 {[%emt 0:01:15]} c3 {[%emt 0:00:28]} 49. Ke2 {[%emt 0:00:11]} b2 {[%emt 0:00:08]} 0-1

[Event "10th Sharjah Cup Women 2020"]
[Site "Sharjah"]
[Date "2020.01.07"]
[Round "4.9"]
[White "Abdulla, Khayala"]
[Black "Pujari, Rucha"]
[Result "1-0"]
[ECO "C42"]
[WhiteElo "2275"]
[BlackElo "2187"]
[Annotator "ChessBase"]
[PlyCount "81"]
[EventDate "2020.01.04"]
[EventType "swiss"]
[EventCountry "UAE"]
[SourceTitle "playchess.com"]
[Source "ChessBase"]
[SourceQuality "1"]
[TimeControl "5400+30"]

1. e4 {[%emt 0:02:29]} e5 {[%emt 0:00:48]} 2. Nf3 {[%emt 0:00:07]} Nf6 {[%emt 0:00:13]} 3. Nxe5 {[%emt 0:00:21]} d6 {[%emt 0:00:05]} 4. Nf3 {[%emt 0:00:09]} Nxe4 {[%emt 0:00:04]} 5. d4 {[%emt 0:01:03]} d5 {[%emt 0:00:03]} 6. Bd3 {[%emt 0:00:33]} Bd6 {[%emt 0:00:02]} 7. O-O {[%emt 0:01:47]} O-O {[%emt 0:00:08]} 8. c4 {[%emt 0:02:30]} c6 {[%emt 0:04:45]} 9. Nc3 {[%emt 0:06:32]} Nxc3 {[%emt 0:01:29]} 10. bxc3 {[%emt 0:00:01]} dxc4 {[%emt 0:00:12]} 11. Bxc4 {[%emt 0:00:04]} h6 {[%emt 0:00:12]} 12. Re1 {[%emt 0:06:35]} Nd7 {[%emt 0:09:27]} 13. Qd3 {[%emt 0:02:49]} b5 {[%emt 0:06:12]} 14. Qg6 {[%emt 0:11:56]} Qf6 {[%emt 0:05:30]} 15. Qxf6 {[%emt 0:03:33]} Nxf6 {[%emt 0:00:04]} 16. Bd3 {[%emt 0:01:38]} Be6 {[%emt 0:03:01]} 17. Ne5 {[%emt 0:05:22]} Bd5 {[%emt 0:07:38]} 18. a4 {[%emt 0:08:53]} Rfb8 {[%emt 0:10:35]} 19. axb5 {[%emt 0:05:28]} cxb5 {[%emt 0:08:56]} 20. Ra6 {[%emt 0:00:46]} Ne8 {[%emt 0:11:14]} 21. Nd7 {[%emt 0:18:43]} Rb7 {[%emt 0:08:05]} 22. Nc5 {[%emt 0:02:58]} Re7 {[%emt 0:11:45]} 23. Rxe7 {[%emt 0:02:54]} Bxe7 {[%emt 0:00:01]} 24. Bf4 {[%emt 0:03:05]} Bxc5 {[%emt 0:00:48]} 25. dxc5 {[%emt 0:00:02]} Bb7 {[%emt 0:00:02]} 26. Ra1 {[%emt 0:06:59]} a6 {[%emt 0:00:52]} 27. f3 {[%emt 0:01:12]} Nf6 {[%emt 0:06:06]} 28. Bd6 {[%emt 0:03:57]} Nd7 {[%emt 0:04:23]} 29. Re1 {[%emt 0:00:38]} Bc6 {[%emt 0:01:06]} 30. Bf5 {[%emt 0:01:12]} a5 {[%emt 0:00:19]} 31. c4 {[%emt 0:00:40]} b4 {[%emt 0:00:35]} 32. Re7 {[%emt 0:00:19]} a4 {[%emt 0:00:45]} 33. Bxd7 {[%emt 0:00:07]} Bxd7 {[%emt 0:00:31]} 34. Rxd7 {[%emt 0:00:03]} f6 {[%emt 0:00:31]} 35. c6 {[%emt 0:00:23]} b3 {[%emt 0:00:30]} 36. Ba3 {[%emt 0:00:24]} Kh7 {[%emt 0:00:30]} 37. c7 {[%emt 0:00:12]} Rc8 {[%emt 0:00:23]} 38. Kf2 {[%emt 0:00:12]} Kg6 {[%emt 0:00:01]} 39. Ke3 {[%emt 0:00:23]} Kf5 {[%emt 0:00:32]} 40. g4+ {[%emt 0:00:24]} Kg6 {[%emt 0:00:10]} 41. Kd4 {[%emt 0:00:32]} 1-0

[Event "10th Sharjah Cup Women 2020"]
[Site "Sharjah"]
[Date "2020.01.07"]
[Round "4.11"]
[White "Nguyen, Thi Mai Hung"]
[Black "Al-Fayyadh, Zainab Asif Abdulah"]
[Result "1-0"]
[ECO "E06"]
[WhiteElo "2254"]
[BlackElo "1646"]
[Annotator "ChessBase"]
[PlyCount "67"]
[EventDate "2020.01.04"]
[EventType "swiss"]
[EventCountry "UAE"]
[SourceTitle "playchess.com"]
[Source "ChessBase"]
[SourceQuality "1"]
[TimeControl "5400+30"]

1. d4 {[%emt 0:00:00]} Nf6 {[%emt 0:00:00]} 2. c4 {[%emt 0:00:00]} e6 {[%emt 0:00:00]} 3. g3 {[%emt 0:00:00]} d5 {[%emt 0:00:08]} 4. Nf3 {[%emt 0:00:10]} Be7 {[%emt 0:00:21]} 5. Bg2 {[%emt 0:00:05]} O-O {[%emt 0:00:27]} 6. O-O {[%emt 0:00:31]} c6 {[%emt 0:01:30]} 7. b3 {[%emt 0:07:18]} Nbd7 {[%emt 0:01:09]} 8. Bb2 {[%emt 0:00:51]} Ne4 {[%emt 0:02:55]} 9. Qc2 {[%emt 0:06:25]} f5 {[%emt 0:02:33]} 10. Ne1 {[%emt 0:02:11]} Ndf6 {[%emt 0:02:29]} 11. Nd3 {[%emt 0:04:25]} Bd6 {[%emt 0:04:51]} 12. Qc1 {[%emt 0:18:12]} h6 {[%emt 0:01:40]} 13. f3 {[%emt 0:03:33]} Ng5 {[%emt 0:01:34]} 14. Nc3 {[%emt 0:00:22]} Qe8 {[%emt 0:07:56]} 15. Ba3 {[%emt 0:00:31]} Nf7 {[%emt 0:03:08]} 16. e4 {[%emt 0:05:35]} Bxa3 {[%emt 0:10:06]} 17. Qxa3 {[%emt 0:00:31]} e5 {[%emt 0:00:32]} 18. exd5 {[%emt 0:03:06]} exd4 {[%emt 0:01:03]} 19. Rfe1 {[%emt 0:01:11]} Qd8 {[%emt 0:00:58]} 20. Ne2 {[%emt 0:00:41]} cxd5 {[%emt 0:02:36]} 21. c5 {[%emt 0:00:25]} Qc7 {[%emt 0:08:40]} 22. Nxd4 {[%emt 0:00:55]} Nd8 {[%emt 0:00:33]} 23. Rad1 {[%emt 0:06:58]} Nc6 {[%emt 0:01:45]} 24. Nb5 {[%emt 0:00:59]} Qf7 {[%emt 0:02:22]} 25. Nf4 {[%emt 0:02:24]} Kh7 {[%emt 0:20:22]} 26. Nd6 {[%emt 0:06:56]} Qc7 {[%emt 0:01:04]} 27. Bh3 {[%emt 0:05:10]} g5 {[%emt 0:01:02]} 28. Nxd5 {[%emt 0:01:02]} Nxd5 {[%emt 0:00:59]} 29. Rxd5 {[%emt 0:00:06]} g4 {[%emt 0:00:41]} 30. fxg4 {[%emt 0:00:29]} fxg4 {[%emt 0:00:31]} 31. Bg2 {[%emt 0:00:04]} Qg7 {[%emt 0:01:45]} 32. Qc1 {[%emt 0:01:06]} Nd4 {[%emt 0:03:26]} 33. Rde5 {[%emt 0:12:07]} Nc6 {[%emt 0:03:45]} 34. Bxc6 {[%emt 0:00:15]} 1-0

[Event "10th Sharjah Cup Women 2020"]
[Site "Sharjah"]
[Date "2020.01.07"]
[Round "4.14"]
[White "Al Ali, Aisha Saif"]
[Black "Suleimanova, Ava"]
[Result "0-1"]
[ECO "B32"]
[WhiteElo "1499"]
[BlackElo "2213"]
[Annotator "ChessBase"]
[PlyCount "140"]
[EventDate "2020.01.04"]
[EventType "swiss"]
[EventCountry "UAE"]
[SourceTitle "playchess.com"]
[Source "ChessBase"]
[SourceQuality "1"]
[TimeControl "5400+30"]

1. e4 {[%emt 0:00:36]} c5 {[%emt 0:00:00]} 2. Nf3 {[%emt 0:00:23]} Nc6 {[%emt 0:00:00]} 3. d4 {[%emt 0:00:13]} cxd4 {[%emt 0:00:00]} 4. Nxd4 {[%emt 0:00:14]} e5 {[%emt 0:00:07]} 5. Nb3 {[%emt 0:04:29]} d6 {[%emt 0:00:46]} 6. Nc3 {[%emt 0:01:09]} f5 {[%emt 0:00:19]} 7. Bc4 {[%emt 0:05:42]} Nf6 {[%emt 0:00:21]} 8. Bg5 {[%emt 0:01:33]} Be7 {[%emt 0:02:58]} 9. Bxf6 {[%emt 0:03:52]} Bxf6 {[%emt 0:00:07]} 10. Qd5 {[%emt 0:00:31]} Rf8 {[%emt 0:10:42]} 11. O-O-O {[%emt 0:08:36]} Be7 {[%emt 0:00:34]} 12. exf5 {[%emt 0:11:11]} Bxf5 {[%emt 0:00:58]} 13. a3 {[%emt 0:02:47]} a6 {[%emt 0:00:47]} 14. Rhe1 {[%emt 0:02:30]} Rc8 {[%emt 0:03:28]} 15. Bd3 {[%emt 0:26:18]} g6 {[%emt 0:08:51]} 16. f3 {[%emt 0:09:07]} Bd7 {[%emt 0:06:42]} 17. Ne4 {[%emt 0:02:14]} Qc7 {[%emt 0:00:18]} 18. Kb1 {[%emt 0:00:47]} Nd8 {[%emt 0:00:40]} 19. Qa5 {[%emt 0:05:01]} Be6 {[%emt 0:04:14]} 20. Qxc7 {[%emt 0:01:14]} Rxc7 {[%emt 0:00:09]} 21. Bf1 {[%emt 0:00:12]} d5 {[%emt 0:05:51]} 22. Nf2 {[%emt 0:00:41]} Bd6 {[%emt 0:06:54]} 23. Nd3 {[%emt 0:01:49]} Nf7 {[%emt 0:00:26]} 24. Nf4 {[%emt 0:01:24]} exf4 {[%emt 0:04:43]} 25. Rxe6+ {[%emt 0:00:03]} Kd7 {[%emt 0:00:08]} 26. Re2 {[%emt 0:00:58]} Ne5 {[%emt 0:01:32]} 27. Red2 {[%emt 0:02:24]} Rf6 {[%emt 0:02:20]} 28. Rxd5 {[%emt 0:00:10]} Ke7 {[%emt 0:00:08]} 29. Nd2 {[%emt 0:00:56]} Re6 {[%emt 0:02:36]} 30. Ne4 {[%emt 0:00:18]} Nf7 {[%emt 0:00:05]} 31. g3 {[%emt 0:00:38]} Be5 {[%emt 0:01:31]} 32. gxf4 {[%emt 0:00:51]} Bxf4 {[%emt 0:00:45]} 33. Bh3 {[%emt 0:00:07]} Rb6 {[%emt 0:01:03]} 34. Rd7+ {[%emt 0:01:06]} Rxd7 {[%emt 0:00:41]} 35. Rxd7+ {[%emt 0:00:09]} Ke8 {[%emt 0:00:06]} 36. Nc3 {[%emt 0:01:33]} Be5 {[%emt 0:02:41]} 37. Re7+ {[%emt 0:01:20]} Kf8 {[%emt 0:02:11]} 38. Re6 {[%emt 0:00:01]} Rxe6 {[%emt 0:01:46]} 39. Bxe6 {[%emt 0:00:02]} Bxh2 {[%emt 0:00:13]} 40. Bc8 {[%emt 0:00:20]} Nd6 {[%emt 0:00:08]} 41. Be6 {[%emt 0:00:33]} Ke7 {[%emt 0:02:24]} 42. Bd5 {[%emt 0:00:16]} b6 {[%emt 0:00:10]} 43. b4 {[%emt 0:01:25]} h5 {[%emt 0:00:32]} 44. Ne2 {[%emt 0:00:31]} g5 {[%emt 0:00:29]} 45. c4 {[%emt 0:00:36]} h4 {[%emt 0:01:09]} 46. c5 {[%emt 0:02:31]} bxc5 {[%emt 0:00:08]} 47. bxc5 {[%emt 0:00:04]} Nb5 {[%emt 0:00:11]} 48. a4 {[%emt 0:00:19]} Nc7 {[%emt 0:00:05]} 49. Be4 {[%emt 0:00:21]} Kf6 {[%emt 0:00:33]} 50. Nc3 {[%emt 0:00:58]} h3 {[%emt 0:00:29]} 51. Bb7 {[%emt 0:01:19]} Bg1 {[%emt 0:01:29]} 52. Ne4+ {[%emt 0:00:28]} Kg6 {[%emt 0:01:05]} 53. c6 {[%emt 0:00:50]} h2 {[%emt 0:04:19]} 54. Ng3 {[%emt 0:00:06]} Kf6 {[%emt 0:00:36]} 55. Kc2 {[%emt 0:00:35]} Ke5 {[%emt 0:00:08]} 56. Kd3 {[%emt 0:01:22]} Kf4 {[%emt 0:00:16]} 57. Nh1 {[%emt 0:00:04]} Kxf3 {[%emt 0:00:15]} 58. Bc8 {[%emt 0:00:47]} g4 {[%emt 0:03:55]} 59. Bf5 {[%emt 0:00:10]} Bb6 {[%emt 0:00:26]} 60. Be4+ {[%emt 0:00:21]} Kf4 {[%emt 0:00:09]} 61. Bg2 {[%emt 0:00:22]} Ne6 {[%emt 0:01:42]} 62. Kc4 {[%emt 0:00:42]} Ke5 {[%emt 0:00:10]} 63. Kb4 {[%emt 0:00:31]} Kd6 {[%emt 0:01:00]} 64. a5 {[%emt 0:00:33]} Bc5+ {[%emt 0:00:28]} 65. Kc4 {[%emt 0:00:02]} Ba7 {[%emt 0:02:32]} 66. Ng3 {[%emt 0:00:49]} Ke5 {[%emt 0:03:49]} 67. Bh1 {[%emt 0:00:30]} Bf2 {[%emt 0:01:23]} 68. Nh5 {[%emt 0:01:00]} Be1 {[%emt 0:00:28]} 69. Ng7 {[%emt 0:00:48]} Nxg7 {[%emt 0:00:32]} 70. c7 {[%emt 0:00:08]} Ne8 {[%emt 0:00:07]} 0-1